bitfinex/quotes_BTCUSD_20241014
["timestamp","ask_amount","ask_price","bid_price","bid_amount"]
[1728870827883,1.24931291,62682.0,62681.0,0.001319]
[1728870828107,1.26031291,62682.0,62681.0,0.001319]
[1728870828588,1.24631291,62682.0,62681.0,0.001319]
[1728870829059,1.26031291,62682.0,62681.0,0.001319]
[1728870829753,1.16460817,62682.0,62681.0,0.001319]
[1728870830248,1.26036237,62682.0,62681.0,0.001319]
[1728870830477,1.16460817,62682.0,62681.0,0.001319]
[1728870831431,1.26036779,62682.0,62681.0,0.001319]
[1728870831640,1.16460817,62682.0,62681.0,0.001319]
[1728870832076,1.26037416,62682.0,62681.0,0.001319]
[1728870832320,1.16460817,62682.0,62681.0,0.001319]
[1728870832537,1.23538095,62682.0,62681.0,0.001319]
[1728870832755,1.13961513,62682.0,62681.0,0.001319]
[1728870832997,1.13956436,62682.0,62681.0,0.001319]
[1728870833519,1.2592827,62682.0,62681.0,0.001319]
[1728870835673,1.28427647,62682.0,62681.0,0.001319]
[1728870836610,1.16455813,62682.0,62681.0,0.001319]
[1728870837078,1.15055813,62682.0,62681.0,0.001319]
[1728870837310,1.13955813,62682.0,62681.0,0.001319]
[1728870837550,1.15155813,62682.0,62681.0,0.001319]
[1728870837982,1.15157685,62682.0,62681.0,0.001319]
[1728870838697,1.16557685,62682.0,62681.0,0.001319]
[1728870840375,1.0097367,62682.0,62681.0,0.001319]
[1728870842050,0.9957367,62682.0,62681.0,0.001319]
[1728870842270,0.99573829,62682.0,62681.0,0.001319]
[1728870842503,0.97274452,62682.0,62681.0,0.001319]
[1728870843256,0.98674452,62682.0,62681.0,0.001319]
[1728870843703,0.95874452,62682.0,62681.0,0.001319]
[1728870843939,0.98674452,62682.0,62681.0,0.001319]
[1728870844623,0.97175901,62682.0,62681.0,0.001319]
[1728870844921,0.98674643,62682.0,62681.0,0.001319]
[1728870845600,1.01174033,62682.0,62681.0,0.001319]
[1728870846951,1.01174033,62682.0,62681.0,0.078719]
[1728870848324,1.01174033,62682.0,62681.0,0.001319]
[1728870848544,1.01174073,62682.0,62681.0,0.001319]
[1728870849694,0.98374073,62682.0,62681.0,0.001319]
[1728870849893,0.99774073,62682.0,62681.0,0.001319]
[1728870850146,1.01174073,62682.0,62681.0,0.001319]
[1728870850369,0.99774073,62682.0,62681.0,0.001319]
[1728870850593,1.01174073,62682.0,62681.0,0.001319]
[1728870851051,1.01174117,62682.0,62681.0,0.001319]
[1728870851275,0.99774117,62682.0,62681.0,0.001319]
[1728870851537,1.01174117,62682.0,62681.0,0.001319]
[1728870851963,0.98374117,62682.0,62681.0,0.001319]
[1728870852410,1.01174117,62682.0,62681.0,0.001319]
[1728870852591,0.9867474,62682.0,62681.0,0.001319]
[1728870854095,1.0775474,62682.0,62681.0,0.001319]
[1728870854310,1.0545474,62682.0,62681.0,0.001319]
[1728870854976,1.21203062,62682.0,62681.0,0.001319]
[1728870855643,1.23702566,62682.0,62681.0,0.001319]
[1728870856311,1.22203727,62682.0,62681.0,0.001319]
[1728870856559,1.23702391,62682.0,62681.0,0.001319]
[1728870856772,1.26002391,62682.0,62681.0,0.001319]
[1728870858623,1.28715946,62682.0,62681.0,0.001319]
[1728870859049,1.27217282,62682.0,62681.0,0.001319]
[1728870859260,1.28715678,62682.0,62681.0,0.001319]
[1728870859739,1.26002123,62682.0,62681.0,0.001319]
[1728870860444,1.3130537,62682.0,62681.0,0.001319]
[1728870860686,1.16922123,62682.0,62681.0,0.001319]
[1728870860898,1.31299672,62682.0,62681.0,0.001319]
[1728870861134,1.14616393,62682.0,62681.0,0.001319]
[1728870861354,0.70040988,62682.0,62681.0,0.170919]
[1728870861573,0.54298396,62682.0,62681.0,0.170919]
[1728870862025,0.54298396,62682.0,62681.0,0.330456]
[1728870862026,0.52898396,62682.0,62681.0,0.330456]
[1728870862253,0.52898396,62682.0,62681.0,0.33879646]
[1728870862254,0.51498396,62682.0,62681.0,0.33879646]
[1728870862465,0.52898396,62682.0,62681.0,0.33879646]
[1728870862681,0.51498396,62682.0,62681.0,0.33879646]
[1728870862911,0.51498396,62682.0,62681.0,0.37079646]
[1728870863138,0.51798396,62682.0,62681.0,0.37279646]
[1728870863368,0.51498396,62682.0,62681.0,0.37279646]
[1728870863611,0.53098396,62682.0,62681.0,0.37279646]
[1728870863835,0.514,62682.0,62681.0,0.37279646]
[1728870864061,0.51495983,62682.0,62681.0,0.37279646]
[1728870864569,0.01495983,62682.0,62681.0,0.37279646]
[1728870865245,0.01495983,62682.0,62681.0,0.49065591]
[1728870865469,0.01495983,62682.0,62681.0,0.65387992]
[1728870865687,0.02499092,62690.0,62689.0,0.276817]
[1728870865903,0.01494644,62690.0,62689.0,0.38967645]
[1728870866130,0.01494644,62690.0,62689.0,0.39791853]
[1728870867282,0.01594644,62690.0,62689.0,0.39991853]
[1728870867495,0.001,62690.0,62689.0,0.39991853]
[1728870867706,0.001,62690.0,62689.0,0.40191853]
[1728870868415,0.00164,62692.0,62691.0,0.005]
[1728870868673,0.0165595,62692.0,62691.0,0.196512]
[1728870868876,0.0165595,62692.0,62691.0,0.20474486]
[1728870869986,0.0165595,62692.0,62691.0,0.20574486]
[1728870870207,0.0165595,62692.0,62691.0,0.20474486]
[1728870870460,0.0175595,62692.0,62691.0,0.20474486]
[1728870871348,0.0205595,62692.0,62691.0,0.20474486]
[1728870871571,0.0205595,62692.0,62691.0,0.17274486]
[1728870871784,0.00164,62692.0,62691.0,0.28094486]
[1728870872521,0.00164,62692.0,62691.0,0.65661767]
[1728870872747,0.00164,62692.0,62691.0,0.65442832]
[1728870873220,0.00164,62692.0,62691.0,0.65342832]
[1728870873435,0.00164,62692.0,62691.0,0.65842832]
[1728870873650,0.00464,62692.0,62691.0,0.65842832]
[1728870874128,0.00164,62692.0,62691.0,0.75842832]
[1728870874352,0.00264,62692.0,62691.0,0.76042832]
[1728870875033,0.00364,62692.0,62691.0,0.76142832]
[1728870875745,0.001638,62700.0,62699.0,0.5698109]
[1728870875983,0.001638,62700.0,62699.0,0.73103491]
[1728870876208,0.001638,62700.0,62699.0,0.73908705]
[1728870876916,0.001638,62700.0,62699.0,0.51336815]
[1728870877212,0.003638,62700.0,62699.0,0.73908705]
[1728870878129,0.003638,62700.0,62699.0,0.77308705]
[1728870879099,0.003638,62700.0,62699.0,0.77108705]
[1728870879320,0.003638,62700.0,62699.0,0.77308705]
[1728870879551,0.001638,62700.0,62699.0,0.77308705]
[1728870879823,0.001638,62700.0,62699.0,0.77108705]
[1728870880051,0.004638,62700.0,62699.0,0.77408705]
[1728870880507,0.002638,62700.0,62699.0,0.77408705]
[1728870880743,0.002638,62700.0,62699.0,0.77708705]
[1728870881484,0.001638,62700.0,62699.0,0.77408705]
[1728870881715,0.001638,62700.0,62699.0,0.7902047]
[1728870881944,0.002638,62700.0,62699.0,0.7922047]
[1728870883165,0.002638,62700.0,62699.0,0.91006415]
[1728870883420,0.002638,62700.0,62699.0,0.90506415]
[1728870883656,0.001638,62702.0,62701.0,0.203487]
[1728870883899,0.001638,62702.0,62701.0,0.53771101]
[1728870884116,0.001638,62702.0,62701.0,0.54561621]
[1728870884327,0.001638,62709.0,62704.0,0.198479]
[1728870884544,0.001638,62709.0,62704.0,0.75772191]
[1728870884768,0.001638,62709.0,62704.0,0.76560733]
[1728870885841,0.002638,62705.0,62704.0,0.77460733]
[1728870887649,0.003638,62705.0,62704.0,0.78060733]
[1728870887895,0.001638,62709.0,62704.0,0.78060733]
[1728870887896,0.001638,62709.0,62708.0,0.279069]
[1728870888126,0.0493943,62712.0,62711.0,0.166461]
[1728870888366,0.02497801,62722.0,62714.0,0.247054]
[1728870888604,0.02497801,62722.0,62714.0,0.55313746]
[1728870888816,0.02497801,62722.0,62714.0,0.56097055]
[1728870890749,0.02497801,62722.0,62714.0,0.56497055]
[1728870891193,0.00264,62715.0,62714.0,0.57197055]
[1728870891423,0.00264,62715.0,62714.0,0.56997055]
[1728870892129,0.00264,62715.0,62714.0,0.57197055]
[1728870892384,0.01754021,62715.0,62714.0,0.57197055]
[1728870893970,0.00264,62715.0,62714.0,0.66897055]
[1728870894181,0.01754316,62715.0,62714.0,0.66897055]
[1728870894633,0.01754316,62715.0,62714.0,0.78183]
[1728870894877,0.00264,62715.0,62714.0,0.66897055]
[1728870895333,0.01755095,62715.0,62714.0,0.66897055]
[1728870895773,0.01755095,62715.0,62714.0,0.78183]
[1728870896616,0.01755095,62715.0,62714.0,0.66897055]
[1728870897256,0.01755163,62715.0,62714.0,0.66897055]
[1728870898971,0.00264,62715.0,62714.0,0.66897055]
[1728870899232,0.01755429,62715.0,62714.0,0.66897055]
[1728870900364,0.01755665,62715.0,62714.0,0.66897055]
[1728870900817,0.01755665,62715.0,62714.0,0.66697055]
[1728870901045,0.19405665,62715.0,62714.0,0.02383309]
[1728870901304,0.19405665,62715.0,62714.0,0.29614654]
[1728870901770,0.11355665,62715.0,62714.0,0.13669254]
[1728870902015,0.11255665,62715.0,62714.0,0.34358092]
[1728870902261,0.01655665,62715.0,62714.0,0.34358092]
[1728870902698,0.01655665,62715.0,62714.0,0.33958092]
[1728870903161,0.02055665,62715.0,62714.0,0.33958092]
[1728870903380,0.02055665,62715.0,62714.0,0.34158092]
[1728870903596,0.01655665,62715.0,62714.0,0.43178092]
[1728870903819,0.01655665,62715.0,62714.0,0.59907475]
[1728870904037,0.02655665,62715.0,62714.0,0.60007475]
[1728870904680,0.02655665,62715.0,62714.0,0.43278092]
[1728870904897,0.02657616,62715.0,62714.0,0.60007475]
[1728870905579,0.02657616,62715.0,62714.0,0.63207475]
[1728870906718,0.01957616,62715.0,62714.0,0.87419876]
[1728870906957,0.00164,62721.0,62720.0,0.198438]
[1728870907182,0.00164,62721.0,62720.0,0.61204386]
[1728870907416,0.00164,62721.0,62720.0,0.61657987]
[1728870908095,0.00164,62721.0,62720.0,0.62037521]
[1728870908550,0.00164,62721.0,62720.0,0.62737521]
[1728870908551,0.00264,62721.0,62720.0,0.62737521]
[1728870909003,0.00264,62721.0,62720.0,0.62537521]
[1728870909306,0.00264,62721.0,62720.0,0.21495737]
[1728870910001,0.00264,62721.0,62720.0,0.21695737]
[1728870916286,0.00264,62721.0,62720.0,0.2952456]
[1728870916529,0.00264,62721.0,62720.0,0.45846925]
[1728870916766,0.00264,62721.0,62720.0,0.45528138]
[1728870918996,0.01759693,62721.0,62720.0,0.45528138]
[1728870920305,0.01759466,62721.0,62720.0,0.45528138]
[1728870920548,0.00264,62721.0,62720.0,0.45528138]
[1728870929621,0.28727276,62733.0,62732.0,0.166408]
[1728870929870,0.28727276,62733.0,62732.0,0.33170183]
[1728870929871,0.30221052,62733.0,62732.0,0.33170183]
[1728870930103,0.25266132,62733.0,62732.0,0.37500077]
[1728870930342,0.01493776,62733.0,62732.0,0.37500077]
[1728870931283,0.01493776,62733.0,62732.0,0.38100077]
[1728870931515,0.11633776,62733.0,62732.0,0.38100077]
[1728870932184,0.11333776,62733.0,62732.0,0.38100077]
[1728870932411,0.11333776,62733.0,62732.0,0.37500077]
[1728870932641,0.11333776,62733.0,62732.0,0.37600077]
[1728870933538,0.01493776,62733.0,62732.0,0.37500077]
[1728870933789,0.01493776,62733.0,62732.0,0.37700077]
[1728870934671,0.01493776,62733.0,62732.0,0.37500077]
[1728870934941,0.01693776,62733.0,62732.0,0.38000077]
[1728870935398,0.01493776,62733.0,62732.0,0.38000077]
[1728870935630,0.01493776,62733.0,62732.0,0.38100077]
[1728870939906,0.35839454,62740.0,62739.0,0.15939]
[1728870940125,0.35839454,62740.0,62739.0,0.32668383]
[1728870940348,0.13561502,62740.0,62739.0,0.33791004]
[1728870940786,0.13561502,62740.0,62739.0,0.17852004]
[1728870941713,0.14161502,62740.0,62739.0,0.17952004]
[1728870942639,0.11664404,62740.0,62739.0,0.17952004]
[1728870943817,0.1166492,62740.0,62739.0,0.17952004]
[1728870946797,0.2760362,62740.0,62739.0,0.17952004]
[1728870947406,0.1166492,62740.0,62739.0,0.17952004]
[1728870947620,0.11666007,62740.0,62739.0,0.33891004]
[1728870947881,0.02096007,62740.0,62739.0,0.34391004]
[1728870951324,0.02096133,62740.0,62739.0,0.34391004]
[1728870952513,0.02096133,62740.0,62739.0,0.37591004]
[1728870953648,0.01496133,62740.0,62739.0,0.37691004]
[1728870953885,0.02096133,62740.0,62739.0,0.37791004]
[1728870954117,0.02095443,62740.0,62739.0,0.37791004]
[1728870954377,0.01659243,62740.0,62739.0,0.37691004]
[1728870954596,0.01659243,62740.0,62739.0,0.38091004]
[1728870954834,0.01659243,62740.0,62739.0,0.37891004]
[1728870957355,0.02496818,62753.0,62751.0,0.15936]
[1728870957590,0.02496818,62753.0,62751.0,0.32665383]
[1728870957852,0.02496818,62753.0,62752.0,0.159357]
[1728870958310,0.02496818,62753.0,62752.0,0.1704306]
[1728870958806,0.02496818,62753.0,62752.0,0.17861723]
[1728870959072,0.00164,62755.0,62754.0,0.164352]
[1728870959323,0.00164,62755.0,62754.0,0.1675385]
[1728870959552,0.00164,62755.0,62754.0,0.1785983]
[1728870960429,0.00164,62755.0,62754.0,0.1735983]
[1728870960705,0.00164,62755.0,62754.0,0.1785983]
[1728870961452,0.00964,62755.0,62754.0,0.1795983]
[1728870961942,0.00964,62755.0,62754.0,0.1714118]
[1728870962162,0.00964,62755.0,62754.0,0.1764118]
[1728870963045,0.345189,62755.0,62754.0,0.0120598]
[1728870963289,0.50641301,62755.0,62754.0,0.0120598]
[1728870963533,0.50641301,62755.0,62754.0,0.001]
[1728870963745,0.57804827,62755.0,62754.0,0.001]
[1728870963967,0.60192669,62755.0,62754.0,0.001]
[1728870964194,0.171,62747.0,62740.0,0.005]
[1728870964429,0.48974,62747.0,62743.0,0.16729383]
[1728870964653,0.159375,62746.0,62743.0,0.16729383]
[1728870964889,0.159376,62745.0,62744.0,0.01095159]
[1728870965350,0.31875,62745.0,62743.0,0.16729383]
[1728870965569,0.478126,62745.0,62744.0,0.01093947]
[1728870965800,0.171,62747.0,62743.0,0.16729383]
[1728870966020,0.159375,62745.0,62744.0,0.01093947]
[1728870966241,0.171,62747.0,62744.0,0.01093947]
[1728870966454,0.171,62747.0,62743.0,0.16729383]
[1728870966455,0.159375,62745.0,62743.0,0.16729383]
[1728870966677,0.183,62747.0,62743.0,0.16729383]
[1728870966897,0.159377,62745.0,62743.0,0.16829383]
[1728870967146,0.159377,62744.0,62743.0,0.16829383]
[1728870967369,0.007,62745.0,62743.0,0.16729383]
[1728870967594,0.166377,62745.0,62743.0,0.16729383]
[1728870967838,0.172638,62747.0,62743.0,0.16729383]
[1728870968282,0.162376,62745.0,62743.0,0.16729383]
[1728870968577,0.003,62745.0,62743.0,0.16729383]
[1728870968824,0.162377,62745.0,62743.0,0.16729383]
[1728870969060,0.003,62745.0,62743.0,0.16829383]
[1728870969302,0.01492839,62744.0,62743.0,0.16829383]
[1728870969546,0.01492839,62744.0,62743.0,0.16729383]
[1728870969779,0.01492839,62744.0,62743.0,0.001]
[1728870970479,0.01492839,62744.0,62742.0,0.00318733]
[1728870970717,0.006,62744.0,62743.0,0.16829383]
[1728870970948,0.02092957,62744.0,62743.0,0.16829383]
[1728870971421,0.18330657,62744.0,62743.0,0.16829383]
[1728870971639,0.18330657,62744.0,62743.0,0.001]
[1728870971866,0.02392957,62744.0,62743.0,0.001]
[1728870972319,0.02392957,62744.0,62741.0,0.164383]
[1728870972320,0.01792957,62744.0,62741.0,0.005]
[1728870972587,0.01492957,62743.0,62742.0,0.001]
[1728870973063,0.01493147,62743.0,62741.0,0.005]
[1728870973313,0.01493147,62742.0,62741.0,0.005]
[1728870973656,0.01493147,62742.0,62741.0,0.164385]
[1728870974164,0.01493147,62742.0,62741.0,0.165385]
[1728870974670,0.01493147,62742.0,62741.0,0.006]
[1728870974908,0.01493147,62742.0,62741.0,0.165385]
[1728870975390,0.01493147,62742.0,62741.0,0.3287961]
[1728870975621,0.01493147,62742.0,62741.0,0.40340901]
[1728870975857,0.001638,62747.0,62746.0,0.196372]
[1728870976071,0.01657143,62747.0,62746.0,0.36366583]
[1728870977195,0.01657143,62747.0,62746.0,0.36766583]
[1728870978997,0.01657143,62747.0,62746.0,0.37869454]
[1728870979910,0.01657542,62747.0,62746.0,0.37869454]
[1728870988014,0.01657542,62747.0,62746.0,0.32395326]
[1728870988451,0.01657542,62747.0,62746.0,0.21140071]
[1728870988675,0.01657542,62747.0,62746.0,0.02002871]
[1728870989133,0.17594542,62747.0,62746.0,0.01502871]
[1728870989379,0.26654542,62747.0,62746.0,0.01502871]
[1728870989598,0.26654542,62747.0,62739.0,0.17558503]
[1728870989599,0.10717542,62747.0,62740.0,0.005819]
[1728870989815,0.159385,62741.0,62740.0,0.005819]
[1728870990031,0.17432242,62741.0,62740.0,0.000819]
[1728870990479,0.36549157,62741.0,62740.0,0.000819]
[1728870991148,0.36549157,62741.0,62740.0,0.001819]
[1728870991421,0.52671558,62741.0,62740.0,0.000819]
[1728870991640,0.67493666,62741.0,62740.0,0.001819]
[1728870991875,0.50774643,62741.0,62740.0,0.001819]
[1728870992092,0.54952059,62741.0,62740.0,0.000819]
[1728870992339,0.50174643,62741.0,62740.0,0.000819]
[1728870992592,0.34052242,62741.0,62740.0,0.000819]
[1728870992814,0.35152242,62741.0,62740.0,0.001819]
[1728870993040,0.19413742,62741.0,62740.0,0.001819]
[1728870993288,0.02593742,62741.0,62740.0,0.32839623]
[1728870993500,0.023,62741.0,62740.0,0.32939623]
[1728870993716,0.023,62741.0,62740.0,0.34061837]
[1728870994351,0.159377,62745.0,62741.0,0.159384]
[1728870994546,0.159378,62744.0,62741.0,0.00318735]
[1728870994803,0.159378,62744.0,62742.0,0.01118538]
[1728870995023,0.159379,62744.0,62740.0,0.16900923]
[1728870995240,0.318755,62744.0,62743.0,0.01117848]
[1728870995478,0.318755,62744.0,62740.0,0.002819]
[1728870995718,0.159385,62741.0,62740.0,0.002819]
[1728870995935,0.159385,62741.0,62740.0,0.001819]
[1728870996155,0.238285,62741.0,62740.0,0.002819]
[1728870996382,0.25321788,62741.0,62740.0,0.002819]
[1728870996597,0.25321788,62741.0,62740.0,0.001819]
[1728870996819,0.17431788,62741.0,62740.0,0.002819]
[1728870997036,0.18231788,62741.0,62740.0,0.002819]
[1728870997245,0.18231788,62741.0,62740.0,0.001819]
[1728870997500,0.174385,62741.0,62740.0,0.002819]
[1728870997721,0.17431609,62741.0,62740.0,0.001819]
[1728870997963,0.17431609,62741.0,62740.0,0.000819]
[1728870998199,0.19231609,62741.0,62740.0,0.002819]
[1728870998626,0.18031609,62741.0,62740.0,0.001819]
[1728870999042,0.19031609,62741.0,62740.0,0.002819]
[1728870999996,0.03093109,62741.0,62740.0,0.32939623]
[1728871000224,0.03093109,62741.0,62740.0,0.17000923]
[1728871000437,0.03093109,62741.0,62740.0,0.002819]
[1728871002306,0.03256909,62741.0,62740.0,0.002819]
[1728871003668,0.19195409,62741.0,62740.0,0.002819]
[1728871004178,0.03256909,62741.0,62740.0,0.002819]
[1728871005559,0.05753865,62741.0,62740.0,0.002819]
[1728871006748,0.05753865,62741.0,62740.0,0.162206]
[1728871007904,0.03256909,62741.0,62740.0,0.17039343]
[1728871008165,0.03256909,62741.0,62740.0,0.167206]
[1728871008655,0.03256064,62741.0,62740.0,0.17836381]
[1728871008909,0.03256064,62741.0,62740.0,0.34555404]
[1728871009177,0.03256064,62741.0,62740.0,0.17836381]
[1728871011327,0.01656064,62741.0,62740.0,0.17636381]
[1728871011794,0.01656064,62741.0,62740.0,0.17836381]
[1728871011795,0.03256064,62741.0,62740.0,0.17836381]
[1728871012268,0.02256064,62741.0,62740.0,0.17736381]
[1728871013414,0.02356064,62741.0,62740.0,0.17736381]
[1728871013668,0.02656064,62741.0,62740.0,0.17736381]
[1728871016613,0.02656064,62741.0,62740.0,0.25946381]
[1728871019113,0.02656064,62741.0,62740.0,0.26146381]
[1728871019793,0.011638,62741.0,62740.0,0.25946381]
[1728871020012,0.02658361,62741.0,62740.0,0.25946381]
[1728871020874,0.02658361,62741.0,62740.0,0.26146381]
[1728871021089,0.02658361,62741.0,62740.0,0.25946381]
[1728871022273,0.02658361,62741.0,62740.0,0.17736381]
[1728871022491,0.011638,62741.0,62740.0,0.17736381]
[1728871022709,0.02658858,62741.0,62740.0,0.17736381]
[1728871026687,0.02639625,62741.0,62740.0,0.17736381]
[1728871030422,0.02638737,62741.0,62740.0,0.17736381]
[1728871032963,0.02638737,62741.0,62740.0,0.28995707]
[1728871037658,0.02639585,62741.0,62740.0,0.28995707]
[1728871042326,0.01939585,62741.0,62740.0,0.28895707]
[1728871042563,0.01639585,62741.0,62740.0,0.28895707]
[1728871043298,0.02039585,62741.0,62740.0,0.28895707]
[1728871043539,0.01639585,62741.0,62740.0,0.28995707]
[1728871045001,0.01939585,62741.0,62740.0,0.28995707]
[1728871045527,0.01939585,62741.0,62740.0,0.29314444]
[1728871046977,0.01939585,62741.0,62740.0,0.28995707]
[1728871047696,0.01939585,62741.0,62740.0,0.01297681]
[1728871047964,0.35268085,62741.0,62740.0,0.01297681]
[1728871048235,0.53887369,62741.0,62740.0,0.01297681]
[1728871048501,0.53887369,62741.0,62740.0,0.001819]
[1728871048502,0.81343828,62741.0,62740.0,0.001819]
[1728871048753,0.81043828,62741.0,62740.0,0.001819]
[1728871048973,0.81043828,62741.0,62740.0,0.002819]
[1728871049250,0.82343828,62741.0,62740.0,0.001819]
[1728871049512,0.83443828,62741.0,62740.0,0.001819]
[1728871049760,0.8139486,62741.0,62740.0,0.000819]
[1728871050026,0.8139486,62741.0,62718.0,0.23772356]
[1728871050027,0.159433,62722.0,62718.0,0.23772356]
[1728871050358,0.17438318,62722.0,62718.0,0.23772356]
[1728871050509,0.17438318,62722.0,62721.0,0.01214426]
[1728871050779,0.19935919,62722.0,62721.0,0.000819]
[1728871052472,0.21030606,62722.0,62721.0,0.000819]
[1728871052704,0.19933005,62722.0,62721.0,0.000819]
[1728871053224,0.34964291,62722.0,62721.0,0.000819]
[1728871053457,0.34565701,62722.0,62721.0,0.000819]
[1728871054675,0.3605433,62722.0,62721.0,0.000819]
[1728871056290,0.34565701,62722.0,62721.0,0.000819]
[1728871065582,0.37063512,62722.0,62721.0,0.000819]
[1728871068967,0.38548616,62722.0,62721.0,0.000819]
[1728871071114,0.38549077,62722.0,62721.0,0.000819]
[1728871072447,0.36051266,62722.0,62721.0,0.000819]
[1728871075077,0.34565701,62722.0,62721.0,0.000819]
[1728871075308,0.36053909,62722.0,62721.0,0.000819]
[1728871075524,0.3855182,62722.0,62721.0,0.000819]
[1728871079231,0.38557169,62722.0,62721.0,0.000819]
[1728871082522,0.36059258,62722.0,62721.0,0.000819]
[1728871083199,0.34659258,62722.0,62721.0,0.000819]
[1728871083659,0.34959258,62722.0,62721.0,0.000819]
[1728871084338,0.35859258,62722.0,62721.0,0.000819]
[1728871084808,0.03793557,62722.0,62721.0,0.000819]
[1728871085040,0.19736857,62722.0,62721.0,0.000819]
[1728871085263,0.19736857,62722.0,62721.0,0.00871431]
[1728871085486,0.19736857,62722.0,62721.0,0.000819]
[1728871085731,0.22234691,62722.0,62721.0,0.00871431]
[1728871085970,0.22234691,62722.0,62721.0,0.000819]
[1728871086199,0.20741134,62722.0,62721.0,0.000819]
[1728871086424,0.22236555,62722.0,62721.0,0.000819]
[1728871087736,0.22236476,62722.0,62721.0,0.00871431]
[1728871087991,0.22236476,62722.0,62721.0,0.000819]
[1728871088209,0.22236476,62722.0,62721.0,0.00871431]
[1728871088471,0.06293176,62722.0,62721.0,0.000819]
[1728871088691,0.06293176,62722.0,62721.0,0.00871431]
[1728871088692,0.22236476,62722.0,62721.0,0.00871431]
[1728871088921,0.22236476,62722.0,62721.0,0.000819]
[1728871089151,0.22236476,62722.0,62721.0,0.00871431]
[1728871089379,0.22236476,62722.0,62721.0,0.000819]
[1728871089593,0.22236476,62722.0,62721.0,0.00871431]
[1728871089810,0.22236476,62722.0,62721.0,0.000819]
[1728871090028,0.22236476,62722.0,62721.0,0.00871431]
[1728871090265,0.22236269,62722.0,62721.0,0.000819]
[1728871090487,0.22236269,62722.0,62721.0,0.00871431]
[1728871090488,0.4658867,62722.0,62721.0,0.00871431]
[1728871090709,0.5580867,62722.0,62721.0,0.000819]
[1728871092539,0.53310836,62722.0,62721.0,0.000819]
[1728871093421,0.60469429,62722.0,62721.0,0.000819]
[1728871093878,0.53310836,62722.0,62721.0,0.000819]
[1728871094123,0.53310447,62722.0,62721.0,0.000819]
[1728871094554,0.61230884,62722.0,62721.0,0.000819]
[1728871094817,0.45447547,62722.0,62721.0,0.000819]
[1728871095039,0.29504247,62722.0,62721.0,0.000819]
[1728871095505,0.29504247,62722.0,62721.0,0.16813258]
[1728871095506,0.10969653,62722.0,62721.0,0.16813258]
[1728871095726,0.13467456,62722.0,62721.0,0.160255]
[1728871095966,0.11076004,62722.0,62721.0,0.00869658]
[1728871096185,0.11076004,62722.0,62721.0,0.16813258]
[1728871096641,0.13467456,62722.0,62721.0,0.00869658]
[1728871096862,0.06292549,62722.0,62721.0,0.00869658]
[1728871097341,0.11075724,62722.0,62721.0,0.00869658]
[1728871097774,0.06292549,62722.0,62721.0,0.00869658]
[1728871098000,0.11074921,62722.0,62721.0,0.00869658]
[1728871098457,0.09580507,62722.0,62721.0,0.00869658]
[1728871098671,0.11074824,62722.0,62721.0,0.00869658]
[1728871098896,0.0629212,62722.0,62721.0,0.44782584]
[1728871099409,0.0629212,62722.0,62721.0,0.5654191]
[1728871099659,0.0629212,62722.0,62721.0,0.5674191]
[1728871099660,0.02394317,62722.0,62721.0,0.5674191]
[1728871099912,0.02394317,62722.0,62721.0,0.5994191]
[1728871100116,0.03794317,62722.0,62721.0,0.5994191]
[1728871101311,0.01494317,62722.0,62721.0,0.5994191]
[1728871101552,0.02094317,62722.0,62721.0,0.6004191]
[1728871101783,0.02594317,62722.0,62721.0,0.6004191]
[1728871102010,0.01994317,62722.0,62721.0,0.5994191]
[1728871102222,0.001,62722.0,62721.0,0.6054191]
[1728871102477,0.002,62722.0,62721.0,0.6054191]
[1728871103387,0.002,62722.0,62721.0,0.76664311]
[1728871104746,0.001,62722.0,62721.0,0.76664311]
[1728871104999,0.23772356,62729.0,62728.0,0.2117]
[1728871105236,0.23772356,62729.0,62728.0,0.48689927]
[1728871105237,0.25263813,62729.0,62728.0,0.48689927]
[1728871105449,0.25263813,62729.0,62728.0,0.4914842]
[1728871105664,0.01491457,62729.0,62728.0,0.4914842]
[1728871106358,0.01591457,62729.0,62728.0,0.65670821]
[1728871107229,0.01591457,62729.0,62728.0,0.65870821]
[1728871107454,0.001,62729.0,62728.0,0.65870821]
[1728871108596,0.001,62729.0,62728.0,0.77130147]
[1728871108832,0.02661075,62740.0,62739.0,0.005]
[1728871109070,0.01654207,62740.0,62739.0,0.51840727]
[1728871109289,0.001638,62740.0,62739.0,0.62169093]
[1728871109571,0.001638,62740.0,62739.0,0.65369093]
[1728871109787,0.001638,62740.0,62739.0,0.65367093]
[1728871110960,0.007638,62740.0,62739.0,0.65367093]
[1728871111208,0.010638,62740.0,62739.0,0.65367093]
[1728871111492,0.004638,62740.0,62739.0,0.65367093]
[1728871111732,0.005638,62740.0,62739.0,0.65667093]
[1728871112169,0.001638,62740.0,62739.0,0.65367093]
[1728871112392,0.001638,62740.0,62739.0,0.65867093]
[1728871112619,0.001638,62740.0,62739.0,0.65967093]
[1728871112855,0.001638,62740.0,62739.0,0.66167093]
[1728871113084,0.001638,62740.0,62739.0,0.65967093]
[1728871113557,0.001638,62740.0,62739.0,0.21385366]
[1728871114035,0.001638,62740.0,62739.0,0.32644692]
[1728871114289,0.001638,62740.0,62739.0,0.32144692]
[1728871114513,0.001638,62740.0,62739.0,0.32044692]
[1728871114735,0.005638,62740.0,62739.0,0.32044692]
[1728871115188,0.001638,62740.0,62739.0,0.32144692]
[1728871115449,0.004638,62740.0,62739.0,0.32144692]
[1728871117911,0.004638,62740.0,62739.0,0.31781213]
[1728871118158,0.004638,62740.0,62739.0,0.31981213]
[1728871118610,0.004638,62740.0,62739.0,0.57923614]
[1728871118839,0.004638,62740.0,62739.0,0.65553614]
[1728871121998,0.004638,62740.0,62739.0,0.71004399]
[1728871123513,0.001638,62740.0,62739.0,0.71004399]
[1728871123943,0.001638,62740.0,62739.0,0.71204399]
[1728871124170,0.002638,62740.0,62739.0,0.71904399]
[1728871124386,0.002638,62740.0,62739.0,0.71604399]
[1728871124615,0.002638,62740.0,62739.0,0.71904399]
[1728871125045,0.001638,62740.0,62739.0,0.71204399]
[1728871125259,0.002638,62740.0,62739.0,0.72104399]
[1728871125692,0.001638,62740.0,62739.0,0.71204399]
[1728871126835,0.001638,62740.0,62739.0,0.70904399]
[1728871127049,0.002638,62740.0,62739.0,0.72304399]
[1728871127258,0.003638,62740.0,62739.0,0.72304399]
[1728871127468,0.003638,62740.0,62739.0,0.71404399]
[1728871127704,0.004638,62740.0,62739.0,0.72304399]
[1728871138669,0.004638,62740.0,62739.0,0.77281345]
[1728871138891,0.00144567,62741.0,62740.0,0.221367]